[Event "*** Titled Tuesday Blitz"]
[Site "Chess.com"]
[Date "2020.11.24"]
[Round "5"]
[White "Ajedrez_con_German"]
[Black "anemih"]
[Result "1/2-1/2"]
[WhiteElo "2497"]
[BlackElo "2351"]
[TimeControl "180+1"]
[EndTime "11:12:51 PST"]
[Termination "Game drawn by repetition"]

1. Nf3 {[%clk 0:02:55.2]} 1... d5 {[%clk 0:02:59.6]} 2. e3 {[%clk 0:02:54.5]}
2... Nf6 {[%clk 0:02:59.2]} 3. b3 {[%clk 0:02:53.9]} 3... c5 {[%clk 0:02:54.3]}
4. Bb2 {[%clk 0:02:36.1]} 4... Nc6 {[%clk 0:02:53.7]} 5. Bb5 {[%clk 0:02:33.9]}
5... Bd7 {[%clk 0:02:47.6]} 6. O-O {[%clk 0:02:29.1]} 6... a6 {[%clk 0:02:47.7]}
7. Bxc6 {[%clk 0:02:26.5]} 7... Bxc6 {[%clk 0:02:48.6]} 8. Ne5 {[%clk
0:02:26.3]} 8... e6 {[%clk 0:02:48.8]} 9. Nxc6 {[%clk 0:02:26.1]} 9... bxc6
{[%clk 0:02:49.7]} 10. d3 {[%clk 0:02:26.6]} 10... Be7 {[%clk 0:02:49.7]} 11.
Nd2 {[%clk 0:02:26]} 11... O-O {[%clk 0:02:49.7]} 12. Nf3 {[%clk 0:02:22]} 12...
Nd7 {[%clk 0:02:47.1]} 13. Ne5 {[%clk 0:02:19.9]} 13... Nxe5 {[%clk 0:02:47.1]}
14. Bxe5 {[%clk 0:02:19.4]} 14... Bf6 {[%clk 0:02:45]} 15. Bxf6 {[%clk
0:02:18.8]} 15... Qxf6 {[%clk 0:02:45.9]} 16. c4 {[%clk 0:02:13.4]} 16... Rfb8
{[%clk 0:02:45]} 17. Qc2 {[%clk 0:02:11.8]} 17... a5 {[%clk 0:02:45.1]} 18. cxd5
{[%clk 0:02:09.9]} 18... cxd5 {[%clk 0:02:45.1]} 19. Qxc5 {[%clk 0:02:10.1]}
19... a4 {[%clk 0:02:43.4]} 20. Rab1 {[%clk 0:02:07.7]} 20... axb3 {[%clk
0:02:33.4]} 21. axb3 {[%clk 0:01:57.7]} 21... h5 {[%clk 0:02:33.3]} 22. d4
{[%clk 0:01:51.7]} 22... h4 {[%clk 0:02:28.9]} 23. h3 {[%clk 0:01:51.2]} 23...
g5 {[%clk 0:02:24.4]} 24. b4 {[%clk 0:01:46.5]} 24... Rc8 {[%clk 0:02:23]} 25.
Qd6 {[%clk 0:01:46]} 25... Rc2 {[%clk 0:02:14.2]} 26. Rbc1 {[%clk 0:01:08.9]}
26... Rb2 {[%clk 0:02:12.5]} 27. Rb1 {[%clk 0:01:07.6]} 27... Rc2 {[%clk
0:02:12.7]} 28. Qe5 {[%clk 0:01:05.6]} 28... Qxe5 {[%clk 0:01:59.5]} 29. dxe5
{[%clk 0:01:06.5]} 29... Raa2 {[%clk 0:01:59.7]} 30. b5 {[%clk 0:01:02]} 30...
Rab2 {[%clk 0:01:59]} 31. Rxb2 {[%clk 0:00:41.4]} 31... Rxb2 {[%clk 0:01:59]}
32. Rd1 {[%clk 0:00:41.1]} 32... Rxb5 {[%clk 0:01:56.9]} 33. Rd4 {[%clk
0:00:41.2]} 33... Kg7 {[%clk 0:01:55.6]} 34. Rg4 {[%clk 0:00:39.6]} 34... f6
{[%clk 0:01:51.4]} 35. f4 {[%clk 0:00:33.3]} 35... Rb1+ {[%clk 0:01:42]} 36. Kf2
{[%clk 0:00:25.6]} 36... Kg6 {[%clk 0:01:01]} 37. exf6 {[%clk 0:00:24.8]} 37...
Kxf6 {[%clk 0:01:00.4]} 38. Rxg5 {[%clk 0:00:25.2]} 38... Rb2+ {[%clk 0:01:00]}
39. Kf3 {[%clk 0:00:24.5]} 39... Rb3 {[%clk 0:01:00.2]} 40. Kf2 {[%clk
0:00:23.4]} 40... Rb2+ {[%clk 0:00:59.9]} 41. Kf3 {[%clk 0:00:15.4]} 41... Rb3
{[%clk 0:01:00.1]} 42. Rh5 {[%clk 0:00:14.3]} 42... d4 {[%clk 0:00:58.4]} 43.
Rxh4 {[%clk 0:00:14.5]} 43... Rxe3+ {[%clk 0:00:57.9]} 44. Kf2 {[%clk
0:00:14.6]} 44... Kf5 {[%clk 0:00:55.1]} 45. g3 {[%clk 0:00:13.9]} 45... Ra3
{[%clk 0:00:53.6]} 46. Rh5+ {[%clk 0:00:13.1]} 46... Ke4 {[%clk 0:00:53.7]} 47.
Re5+ {[%clk 0:00:13.1]} 47... Kd3 {[%clk 0:00:54.1]} 48. Rxe6 {[%clk 0:00:13.7]}
48... Kd2 {[%clk 0:00:52.4]} 49. h4 {[%clk 0:00:13.6]} 49... d3 {[%clk
0:00:52.4]} 50. h5 {[%clk 0:00:13.9]} 50... Kd1 {[%clk 0:00:52.3]} 51. Kf3
{[%clk 0:00:11.1]} 51... d2+ {[%clk 0:00:52.1]} 52. Kg4 {[%clk 0:00:10.8]} 52...
Rd3 {[%clk 0:00:49.8]} 53. Ra6 {[%clk 0:00:08.7]} 53... Ke2 {[%clk 0:00:48.9]}
54. Ra1 {[%clk 0:00:06.4]} 54... Kf2 {[%clk 0:00:48.6]} 55. h6 {[%clk
0:00:05.3]} 55... Rxg3+ {[%clk 0:00:48.7]} 56. Kf5 {[%clk 0:00:05]} 56... Rh3
{[%clk 0:00:47.2]} 57. Kg6 {[%clk 0:00:04.6]} 57... Rg3+ {[%clk 0:00:44.3]} 58.
Kf6 {[%clk 0:00:04.9]} 58... Rf3 {[%clk 0:00:42.8]} 59. f5 {[%clk 0:00:04.4]}
59... Rh3 {[%clk 0:00:41.4]} 60. Kg7 {[%clk 0:00:03.5]} 60... Rg3+ {[%clk
0:00:39.9]} 61. Kf6 {[%clk 0:00:03.8]} 61... Rh3 {[%clk 0:00:40]} 62. Kg7 {[%clk
0:00:04.3]} 62... Rg3+ {[%clk 0:00:39.6]} 63. Kf6 {[%clk 0:00:04.8]} 63... Rh3
{[%clk 0:00:37.7]} 1/2-1/2

[Event "*** Titled Tuesday Blitz"]
[Site "Chess.com"]
[Date "2020.11.24"]
[Round "5"]
[White "shriyanasmallya"]
[Black "LaPorfia"]
[Result "0-1"]
[WhiteElo "1677"]
[BlackElo "2297"]
[TimeControl "180+1"]
[EndTime "11:12:52 PST"]
[Termination "LaPorfia won by checkmate"]

1. e4 {[%clk 0:03:00.9]} 1... d5 {[%clk 0:02:59.3]} 2. exd5 {[%clk 0:02:59.4]}
2... Nf6 {[%clk 0:02:59.3]} 3. Nc3 {[%clk 0:02:58.7]} 3... Nxd5 {[%clk 0:02:59]}
4. d4 {[%clk 0:02:56.2]} 4... g6 {[%clk 0:02:58.1]} 5. Nf3 {[%clk 0:02:53.8]}
5... Bg7 {[%clk 0:02:57.5]} 6. Bc4 {[%clk 0:02:49.8]} 6... Be6 {[%clk
0:02:56.9]} 7. Nxd5 {[%clk 0:02:45.7]} 7... Bxd5 {[%clk 0:02:57.8]} 8. Bxd5
{[%clk 0:02:44.8]} 8... Qxd5 {[%clk 0:02:58.6]} 9. O-O {[%clk 0:02:43.5]} 9...
O-O {[%clk 0:02:56.2]} 10. Be3 {[%clk 0:02:40.9]} 10... Nd7 {[%clk 0:02:43.7]}
11. b3 {[%clk 0:02:31.1]} 11... Rac8 {[%clk 0:02:31.2]} 12. c4 {[%clk
0:02:29.4]} 12... Qh5 {[%clk 0:02:31.3]} 13. h3 {[%clk 0:02:18.6]} 13... c5
{[%clk 0:02:30.1]} 14. Rc1 {[%clk 0:02:13.6]} 14... a6 {[%clk 0:02:28.6]} 15. d5
{[%clk 0:02:08.6]} 15... Ne5 {[%clk 0:02:19.4]} 16. Nxe5 {[%clk 0:01:55.7]}
16... Qxd1 {[%clk 0:02:18.5]} 17. Rcxd1 {[%clk 0:01:53.3]} 17... Bxe5 {[%clk
0:02:19]} 18. f4 {[%clk 0:01:52.5]} 18... Bd6 {[%clk 0:02:18.7]} 19. f5 {[%clk
0:01:50.4]} 19... Rc7 {[%clk 0:02:10.9]} 20. Bh6 {[%clk 0:01:47.2]} 20... Rb8
{[%clk 0:02:04.2]} 21. fxg6 {[%clk 0:01:42.3]} 21... hxg6 {[%clk 0:02:05.1]} 22.
Rf3 {[%clk 0:01:33.9]} 22... f6 {[%clk 0:02:02.3]} 23. Bf4 {[%clk 0:01:21.9]}
23... Bxf4 {[%clk 0:01:36.3]} 24. Rxf4 {[%clk 0:01:22.8]} 24... b5 {[%clk
0:01:32.7]} 25. d6 {[%clk 0:01:17.3]} 25... Rd7 {[%clk 0:01:28.5]} 26. cxb5
{[%clk 0:01:11.1]} 26... axb5 {[%clk 0:01:27.2]} 27. Rg4 {[%clk 0:01:01.4]}
27... Kf7 {[%clk 0:01:23.1]} 28. Rh4 {[%clk 0:00:55.1]} 28... Kg7 {[%clk
0:01:11.9]} 29. Rd5 {[%clk 0:00:44]} 29... exd6 {[%clk 0:01:09.9]} 30. Re4
{[%clk 0:00:39.3]} 30... Kf7 {[%clk 0:01:06.1]} 31. Rh4 {[%clk 0:00:34.9]} 31...
Kg7 {[%clk 0:00:50.1]} 32. Re4 {[%clk 0:00:30]} 32... Ra8 {[%clk 0:00:42.1]} 33.
Re2 {[%clk 0:00:24.4]} 33... Kf7 {[%clk 0:00:35.6]} 34. Red2 {[%clk 0:00:21.7]}
34... Ra6 {[%clk 0:00:35.4]} 35. Rxc5 {[%clk 0:00:18.4]} 35... dxc5 {[%clk
0:00:35.7]} 36. Rxd7+ {[%clk 0:00:17.8]} 36... Ke6 {[%clk 0:00:36.1]} 37. Rd2
{[%clk 0:00:17.9]} 37... c4 {[%clk 0:00:32.4]} 38. Kf2 {[%clk 0:00:17.9]} 38...
c3 {[%clk 0:00:26.2]} 39. Re2+ {[%clk 0:00:16.8]} 39... Kd5 {[%clk 0:00:24.8]}
40. Rc2 {[%clk 0:00:17.2]} 40... Kd4 {[%clk 0:00:23.2]} 41. Kf3 {[%clk
0:00:16.9]} 41... b4 {[%clk 0:00:22.8]} 42. Ke2 {[%clk 0:00:15.8]} 42... Re6+
{[%clk 0:00:21.8]} 43. Kf3 {[%clk 0:00:16.1]} 43... Kd3 {[%clk 0:00:21.9]} 44.
Rc1 {[%clk 0:00:15.6]} 44... Kd2 {[%clk 0:00:21.8]} 45. Rf1 {[%clk 0:00:15.5]}
45... c2 {[%clk 0:00:21.3]} 46. Rf2+ {[%clk 0:00:15.8]} 46... Kc3 {[%clk
0:00:20.9]} 47. Rf1 {[%clk 0:00:14.2]} 47... Kb2 {[%clk 0:00:20]} 48. a4 {[%clk
0:00:13]} 48... bxa3 {[%clk 0:00:18.8]} 49. b4 {[%clk 0:00:12.7]} 49... a2
{[%clk 0:00:18.6]} 50. b5 {[%clk 0:00:13]} 50... c1=Q {[%clk 0:00:18.1]} 51.
Rxc1 {[%clk 0:00:12.3]} 51... Kxc1 {[%clk 0:00:19]} 52. g3 {[%clk 0:00:11.1]}
52... a1=Q {[%clk 0:00:18.3]} 53. b6 {[%clk 0:00:11.3]} 53... Qa3+ {[%clk
0:00:18.3]} 54. Kf4 {[%clk 0:00:11.6]} 54... Qe3+ {[%clk 0:00:17.5]} 55. Kg4
{[%clk 0:00:11.3]} 55... Re4# {[%clk 0:00:16.2]} 0-1

[Event "*** Titled Tuesday Blitz"]
[Site "Chess.com"]
[Date "2020.11.24"]
[Round "5"]
[White "Evgeny81"]
[Black "SARGISMV"]
[Result "1-0"]
[WhiteElo "2724"]
[BlackElo "2506"]
[TimeControl "180+1"]
[EndTime "11:12:53 PST"]
[Termination "Evgeny81 won by checkmate"]

1. e4 {[%clk 0:02:57.5]} 1... e6 {[%clk 0:02:59.7]} 2. d4 {[%clk 0:02:53.9]}
2... d5 {[%clk 0:02:59.2]} 3. Nc3 {[%clk 0:02:54.8]} 3... Bb4 {[%clk 0:02:57.3]}
4. e5 {[%clk 0:02:55.3]} 4... c5 {[%clk 0:02:57.5]} 5. a3 {[%clk 0:02:55.9]}
5... Bxc3+ {[%clk 0:02:57.8]} 6. bxc3 {[%clk 0:02:56.8]} 6... Ne7 {[%clk
0:02:58.6]} 7. Qg4 {[%clk 0:02:56.6]} 7... O-O {[%clk 0:02:58.5]} 8. Bd3 {[%clk
0:02:52.8]} 8... Nbc6 {[%clk 0:02:58.3]} 9. Nf3 {[%clk 0:02:52.3]} 9... f5
{[%clk 0:02:56.9]} 10. exf6 {[%clk 0:02:51.9]} 10... Rxf6 {[%clk 0:02:55.9]} 11.
Bg5 {[%clk 0:02:48.3]} 11... e5 {[%clk 0:02:53.3]} 12. Qh4 {[%clk 0:02:45.6]}
12... e4 {[%clk 0:02:50.4]} 13. Bxf6 {[%clk 0:02:43.6]} 13... gxf6 {[%clk
0:02:51.3]} 14. Qxf6 {[%clk 0:02:40.9]} 14... exd3 {[%clk 0:02:51.4]} 15. cxd3
{[%clk 0:02:33.9]} 15... cxd4 {[%clk 0:02:48.2]} 16. Nxd4 {[%clk 0:02:32]} 16...
Qf8 {[%clk 0:02:43.5]} 17. Qxf8+ {[%clk 0:02:25.4]} 17... Kxf8 {[%clk
0:02:40.9]} 18. Nxc6 {[%clk 0:02:22.8]} 18... Nxc6 {[%clk 0:02:24.1]} 19. Kd2
{[%clk 0:02:23.7]} 19... Be6 {[%clk 0:01:30.4]} 20. Rhe1 {[%clk 0:02:20.7]}
20... Bf7 {[%clk 0:01:24.9]} 21. Rab1 {[%clk 0:02:15.9]} 21... b6 {[%clk
0:01:24.2]} 22. f4 {[%clk 0:02:00.5]} 22... h5 {[%clk 0:01:18.1]} 23. g3 {[%clk
0:01:53.8]} 23... Kg7 {[%clk 0:01:01.7]} 24. h3 {[%clk 0:01:37.4]} 24... Kf6
{[%clk 0:01:01.3]} 25. g4 {[%clk 0:01:36.5]} 25... h4 {[%clk 0:00:59.7]} 26. Re2
{[%clk 0:01:18]} 26... Rc8 {[%clk 0:00:54.4]} 27. Rbe1 {[%clk 0:01:16.6]} 27...
Rc7 {[%clk 0:00:48.5]} 28. f5 {[%clk 0:01:12.8]} 28... Na5 {[%clk 0:00:41.4]}
29. Ke3 {[%clk 0:00:48.9]} 29... Kg5 {[%clk 0:00:27.2]} 30. Kd2 {[%clk
0:00:42.7]} 30... Nb3+ {[%clk 0:00:26.5]} 31. Ke3 {[%clk 0:00:41.2]} 31... Rxc3
{[%clk 0:00:25.7]} 32. Kf2 {[%clk 0:00:36.1]} 32... Rxd3 {[%clk 0:00:22.6]} 33.
Re7 {[%clk 0:00:36.1]} 33... Rd2+ {[%clk 0:00:11.5]} 34. R1e2 {[%clk 0:00:21.4]}
34... Rxe2+ {[%clk 0:00:10.6]} 35. Kxe2 {[%clk 0:00:22.3]} 35... Kf6 {[%clk
0:00:10.4]} 36. Rxa7 {[%clk 0:00:22.2]} 36... d4 {[%clk 0:00:09.6]} 37. g5+
{[%clk 0:00:21.9]} 37... Kxf5 {[%clk 0:00:08.5]} 38. Rxf7+ {[%clk 0:00:21.6]}
38... Kxg5 {[%clk 0:00:09.4]} 39. Kd3 {[%clk 0:00:20]} 39... Kg6 {[%clk
0:00:06.4]} 40. Rf4 {[%clk 0:00:18.3]} 40... Kg5 {[%clk 0:00:06.3]} 41. Rg4+
{[%clk 0:00:17.9]} 41... Kh5 {[%clk 0:00:06.6]} 42. Kc4 {[%clk 0:00:17.6]} 42...
Nd2+ {[%clk 0:00:06.4]} 43. Kxd4 {[%clk 0:00:17.7]} 43... Nf3+ {[%clk
0:00:06.9]} 44. Ke4 {[%clk 0:00:08.7]} 44... Ng5+ {[%clk 0:00:07.5]} 45. Rxg5+
{[%clk 0:00:08.9]} 45... Kxg5 {[%clk 0:00:07.5]} 46. a4 {[%clk 0:00:09.5]} 46...
Kf6 {[%clk 0:00:03.7]} 47. Kf4 {[%clk 0:00:10.1]} 47... Ke6 {[%clk 0:00:04.1]}
48. Kg4 {[%clk 0:00:10.8]} 48... Kd5 {[%clk 0:00:04.6]} 49. Kxh4 {[%clk
0:00:11.5]} 49... Kc4 {[%clk 0:00:05.3]} 50. Kg3 {[%clk 0:00:11.8]} 50... Kb4
{[%clk 0:00:05.7]} 51. h4 {[%clk 0:00:12.5]} 51... Kxa4 {[%clk 0:00:06.4]} 52.
h5 {[%clk 0:00:13.3]} 52... b5 {[%clk 0:00:07.1]} 53. h6 {[%clk 0:00:14.2]}
53... b4 {[%clk 0:00:07.6]} 54. h7 {[%clk 0:00:15.1]} 54... b3 {[%clk
0:00:07.8]} 55. h8=Q {[%clk 0:00:16]} 55... Ka3 {[%clk 0:00:08.4]} 56. Qa1+
{[%clk 0:00:15.7]} 56... Kb4 {[%clk 0:00:08.6]} 57. Qb2 {[%clk 0:00:16.6]} 57...
Kc4 {[%clk 0:00:08.8]} 58. Kf3 {[%clk 0:00:16.9]} 58... Kd3 {[%clk 0:00:08.9]}
59. Qxb3+ {[%clk 0:00:16.8]} 59... Kd2 {[%clk 0:00:09.4]} 60. Qd5+ {[%clk
0:00:15.7]} 60... Ke1 {[%clk 0:00:10.3]} 61. Qd6 {[%clk 0:00:15.2]} 61... Kf1
{[%clk 0:00:10.2]} 62. Qd1# {[%clk 0:00:16.1]} 1-0

[Event "*** Titled Tuesday Blitz"]
[Site "Chess.com"]
[Date "2020.11.24"]
[Round "5"]
[White "Jospem"]
[Black "baki83"]
[Result "1-0"]
[WhiteElo "3058"]
[BlackElo "2742"]
[TimeControl "180+1"]
[EndTime "11:12:55 PST"]
[Termination "Jospem won on time"]

1. e4 {[%clk 0:02:59.9]} 1... e5 {[%clk 0:02:58.9]} 2. Nf3 {[%clk 0:02:59.9]}
2... Nc6 {[%clk 0:02:59.5]} 3. Bb5 {[%clk 0:02:59.6]} 3... a6 {[%clk 0:02:59.2]}
4. Ba4 {[%clk 0:02:59.5]} 4... Nf6 {[%clk 0:02:59.4]} 5. d3 {[%clk 0:02:50.6]}
5... Bc5 {[%clk 0:02:58]} 6. O-O {[%clk 0:02:47.1]} 6... d6 {[%clk 0:02:57.7]}
7. c3 {[%clk 0:02:38.1]} 7... O-O {[%clk 0:02:56.7]} 8. h3 {[%clk 0:02:36.2]}
8... h6 {[%clk 0:02:56.2]} 9. Nbd2 {[%clk 0:02:29.4]} 9... Ba7 {[%clk
0:02:52.9]} 10. Re1 {[%clk 0:02:21.2]} 10... Ne7 {[%clk 0:02:52.8]} 11. d4
{[%clk 0:02:21]} 11... Ng6 {[%clk 0:02:52.8]} 12. Bc2 {[%clk 0:02:20.6]} 12...
Nh7 {[%clk 0:02:40.5]} 13. Nf1 {[%clk 0:01:58.5]} 13... Ng5 {[%clk 0:02:30.3]}
14. Nxg5 {[%clk 0:01:44.4]} 14... hxg5 {[%clk 0:02:31.2]} 15. Be3 {[%clk
0:01:44]} 15... Qf6 {[%clk 0:02:19.5]} 16. Nh2 {[%clk 0:01:41.7]} 16... Qe7
{[%clk 0:02:08.1]} 17. Qf3 {[%clk 0:00:54.1]} 17... Nf4 {[%clk 0:02:04.8]} 18.
Rad1 {[%clk 0:00:52.4]} 18... g6 {[%clk 0:02:02.8]} 19. Qg3 {[%clk 0:00:38.5]}
19... Kg7 {[%clk 0:01:59.4]} 20. Nf3 {[%clk 0:00:31.6]} 20... f6 {[%clk
0:01:32]} 21. Nh2 {[%clk 0:00:31.6]} 21... Rh8 {[%clk 0:01:29.4]} 22. Ng4 {[%clk
0:00:31]} 22... Bxg4 {[%clk 0:01:21.6]} 23. Qxg4 {[%clk 0:00:14.2]} 23... Rh4
{[%clk 0:01:20.5]} 24. Qf3 {[%clk 0:00:13.1]} 24... Rah8 {[%clk 0:01:20]} 25.
Bxf4 {[%clk 0:00:13.3]} 25... Rxf4 {[%clk 0:01:12.8]} 26. Qg3 {[%clk 0:00:11.4]}
26... Rfh4 {[%clk 0:01:10]} 27. Kf1 {[%clk 0:00:08.6]} 27... Qe8 {[%clk
0:00:50.1]} 28. a4 {[%clk 0:00:07.2]} 28... Qe6 {[%clk 0:00:45.8]} 29. Bd3
{[%clk 0:00:03.5]} 29... g4 {[%clk 0:00:44.4]} 30. hxg4 {[%clk 0:00:03.4]} 30...
Rxg4 {[%clk 0:00:43.7]} 31. Qf3 {[%clk 0:00:03.8]} 31... Rf4 {[%clk 0:00:42.1]}
32. Qg3 {[%clk 0:00:04.2]} 32... Qb3 {[%clk 0:00:32.5]} 33. Rd2 {[%clk
0:00:04.7]} 33... Qxa4 {[%clk 0:00:29.4]} 34. Ke2 {[%clk 0:00:05.2]} 34... g5
{[%clk 0:00:27.7]} 35. f3 {[%clk 0:00:02.4]} 35... exd4 {[%clk 0:00:27.4]} 36.
Rc1 {[%clk 0:00:02.8]} 36... c6 {[%clk 0:00:21.1]} 37. Bb1 {[%clk 0:00:02.7]}
37... dxc3 {[%clk 0:00:17.8]} 38. Rxc3 {[%clk 0:00:03.6]} 38... Qb5+ {[%clk
0:00:17.7]} 39. Bd3 {[%clk 0:00:03.4]} 39... Qb6 {[%clk 0:00:17]} 40. Kd1 {[%clk
0:00:03.5]} 40... Rh1+ {[%clk 0:00:15.3]} 41. Kc2 {[%clk 0:00:04]} 41... Qg1
{[%clk 0:00:15.8]} 42. Kb3 {[%clk 0:00:03.5]} 42... Bd4 {[%clk 0:00:13.4]} 43.
Rc4 {[%clk 0:00:02.6]} 43... Be5 {[%clk 0:00:13.2]} 44. Bc2 {[%clk 0:00:02.6]}
44... Rxe4 {[%clk 0:00:06.4]} 45. f4 {[%clk 0:00:03.2]} 45... Re3+ {[%clk
0:00:06.1]} 46. Qxe3 {[%clk 0:00:01.5]} 46... Qxe3+ {[%clk 0:00:06.5]} 47. Rd3
{[%clk 0:00:02.4]} 47... Qb6+ {[%clk 0:00:06.6]} 48. Rb4 {[%clk 0:00:02.6]}
48... Qxb4+ {[%clk 0:00:04.8]} 49. Kxb4 {[%clk 0:00:03.5]} 49... gxf4 {[%clk
0:00:05]} 50. Ka3 {[%clk 0:00:02.5]} 50... Rg1 {[%clk 0:00:05]} 51. Rb3 {[%clk
0:00:03.1]} 51... b5 {[%clk 0:00:04.4]} 52. Be4 {[%clk 0:00:03.6]} 52... c5
{[%clk 0:00:03.4]} 53. Ka2 {[%clk 0:00:03.5]} 53... b4 {[%clk 0:00:02.7]} 54.
Rd3 {[%clk 0:00:03]} 54... c4 {[%clk 0:00:01.4]} 55. Rd2 {[%clk 0:00:03]} 1-0

[Event "*** Titled Tuesday Blitz"]
[Site "Chess.com"]
[Date "2020.11.24"]
[Round "5"]
[White "MarcoRiehle"]
[Black "Grandmaster2B"]
[Result "0-1"]
[WhiteElo "2687"]
[BlackElo "2519"]
[TimeControl "180+1"]
[EndTime "11:12:57 PST"]
[Termination "Grandmaster2B won by checkmate"]

1. e4 {[%clk 0:03:00.9]} 1... c5 {[%clk 0:02:55.5]} 2. a3 {[%clk 0:02:59.5]}
2... d5 {[%clk 0:02:47.4]} 3. exd5 {[%clk 0:02:59.2]} 3... Qxd5 {[%clk
0:02:48.3]} 4. Nc3 {[%clk 0:02:59.1]} 4... Qd8 {[%clk 0:02:46.4]} 5. Nf3 {[%clk
0:02:59.1]} 5... Nf6 {[%clk 0:02:40.6]} 6. d4 {[%clk 0:02:58.6]} 6... Bg4 {[%clk
0:02:35.4]} 7. Bf4 {[%clk 0:02:52.6]} 7... cxd4 {[%clk 0:02:30.6]} 8. Qxd4
{[%clk 0:02:51.9]} 8... Nc6 {[%clk 0:02:24.3]} 9. Qa4 {[%clk 0:02:35.5]} 9... a6
{[%clk 0:01:59.7]} 10. Ne5 {[%clk 0:02:29.8]} 10... Qc8 {[%clk 0:01:51.7]} 11.
Bc4 {[%clk 0:02:23.4]} 11... Be6 {[%clk 0:01:44.9]} 12. Bxe6 {[%clk 0:02:14]}
12... Qxe6 {[%clk 0:01:45.8]} 13. O-O-O {[%clk 0:02:13.6]} 13... Qc8 {[%clk
0:01:20.3]} 14. Rhe1 {[%clk 0:01:58]} 14... e6 {[%clk 0:01:15.9]} 15. g4 {[%clk
0:01:43.9]} 15... Be7 {[%clk 0:01:10.3]} 16. g5 {[%clk 0:01:40.7]} 16... Nh5
{[%clk 0:01:09.6]} 17. Be3 {[%clk 0:01:14.5]} 17... O-O {[%clk 0:00:37.7]} 18.
Nd7 {[%clk 0:01:09.3]} 18... Rd8 {[%clk 0:00:33.1]} 19. Nb6 {[%clk 0:01:09.2]}
19... Qc7 {[%clk 0:00:30.7]} 20. Nxa8 {[%clk 0:01:08.7]} 20... Rxa8 {[%clk
0:00:31.3]} 21. Qh4 {[%clk 0:00:59]} 21... g6 {[%clk 0:00:31.2]} 22. Ne4 {[%clk
0:00:55]} 22... Rc8 {[%clk 0:00:22.1]} 23. Rd2 {[%clk 0:00:47.5]} 23... Ne5
{[%clk 0:00:21.4]} 24. Qh3 {[%clk 0:00:33.4]} 24... Nd3+ {[%clk 0:00:16.9]} 25.
Kd1 {[%clk 0:00:26.4]} 25... Nxe1 {[%clk 0:00:08.8]} 26. Kxe1 {[%clk 0:00:27.3]}
26... Qe5 {[%clk 0:00:06.9]} 27. Nf6+ {[%clk 0:00:20.4]} 27... Nxf6 {[%clk
0:00:02.2]} 28. gxf6 {[%clk 0:00:21.3]} 28... Bxf6 {[%clk 0:00:03.1]} 29. c3
{[%clk 0:00:21.2]} 29... Qf5 {[%clk 0:00:02.1]} 30. Qxf5 {[%clk 0:00:20.1]}
30... exf5 {[%clk 0:00:03]} 31. Rd7 {[%clk 0:00:19.8]} 31... b5 {[%clk
0:00:02.1]} 32. Rd6 {[%clk 0:00:20]} 32... Be5 {[%clk 0:00:02.6]} 33. Rxa6
{[%clk 0:00:20.4]} 33... Bxh2 {[%clk 0:00:03.2]} 34. Rb6 {[%clk 0:00:20.8]}
34... Bc7 {[%clk 0:00:01.5]} 35. Rc6 {[%clk 0:00:19]} 35... f4 {[%clk 0:00:01]}
36. Bxf4 {[%clk 0:00:17.6]} 36... Re8+ {[%clk 0:00:01.7]} 37. Be3 {[%clk
0:00:18.1]} 37... Bf4 {[%clk 0:00:02.1]} 38. Ke2 {[%clk 0:00:17.6]} 38... h5
{[%clk 0:00:02.8]} 39. Kf3 {[%clk 0:00:15.7]} 39... Bxe3 {[%clk 0:00:03.4]} 40.
fxe3 {[%clk 0:00:16.6]} 40... h4 {[%clk 0:00:03.8]} 41. Rb6 {[%clk 0:00:16.6]}
41... Kg7 {[%clk 0:00:03.3]} 42. Rxb5 {[%clk 0:00:16.6]} 42... f5 {[%clk
0:00:02.7]} 43. Rd5 {[%clk 0:00:15.2]} 43... Kf6 {[%clk 0:00:02.6]} 44. b4
{[%clk 0:00:14.6]} 44... g5 {[%clk 0:00:03.3]} 45. a4 {[%clk 0:00:13.8]} 45...
g4+ {[%clk 0:00:03.8]} 46. Kf2 {[%clk 0:00:14]} 46... h3 {[%clk 0:00:02.4]} 47.
a5 {[%clk 0:00:12.6]} 47... h2 {[%clk 0:00:02.6]} 48. Rd1 {[%clk 0:00:12.1]}
48... Kg5 {[%clk 0:00:01.7]} 49. a6 {[%clk 0:00:11.4]} 49... Kh4 {[%clk
0:00:01.4]} 50. a7 {[%clk 0:00:09.2]} 50... Kh3 {[%clk 0:00:01.8]} 51. Rd7
{[%clk 0:00:01.8]} 51... g3+ {[%clk 0:00:02.7]} 52. Kf3 {[%clk 0:00:02.5]} 52...
h1=Q+ {[%clk 0:00:03.1]} 53. Kf4 {[%clk 0:00:01.7]} 53... Qe4+ {[%clk
0:00:03.5]} 54. Kg5 {[%clk 0:00:02.6]} 54... Qg4+ {[%clk 0:00:04.1]} 55. Kf6
{[%clk 0:00:02.6]} 55... g2 {[%clk 0:00:03.3]} 56. Rh7+ {[%clk 0:00:02.3]} 56...
Kg3 {[%clk 0:00:03.9]} 57. Re7 {[%clk 0:00:02]} 57... Rxe7 {[%clk 0:00:03.5]}
58. a8=Q {[%clk 0:00:01.9]} 58... Qg7+ {[%clk 0:00:03.4]} 59. Kxf5 {[%clk
0:00:02]} 59... Re5# {[%clk 0:00:04.3]} 0-1